[Event "Late-Titled-Tuesday-Blitz-April-02-2024"]
[Site "Chess.com"]
[Date "2024.04.02"]
[Round "8"]
[White "protectiago"]
[Black "cthake"]
[Result "1-0"]
[WhiteElo "2063"]
[BlackElo "1817"]
[TimeControl "180+1"]
[EndTime "15:28:23 PDT"]
[Termination "protectiago won by checkmate"]

1. d4 {[%clk 0:02:56.2]} 1... Nf6 {[%clk 0:02:58.5]} 2. c4 {[%clk 0:02:54.6]}
2... c5 {[%clk 0:02:58.3]} 3. d5 {[%clk 0:02:54.1]} 3... e6 {[%clk 0:02:58.9]}
4. Nc3 {[%clk 0:02:47.6]} 4... exd5 {[%clk 0:02:54.9]} 5. cxd5 {[%clk
0:02:48.5]} 5... d6 {[%clk 0:02:55.1]} 6. g3 {[%clk 0:02:48.4]} 6... g6 {[%clk
0:02:55.3]} 7. Bg2 {[%clk 0:02:47.8]} 7... Bg7 {[%clk 0:02:55.5]} 8. Qa4+ {[%clk
0:02:41.2]} 8... Nbd7 {[%clk 0:02:42.8]} 9. Nf3 {[%clk 0:02:38.5]} 9... O-O
{[%clk 0:02:42.3]} 10. O-O {[%clk 0:02:37.6]} 10... a6 {[%clk 0:02:42.5]} 11.
Bf4 {[%clk 0:02:27.4]} 11... Nb6 {[%clk 0:02:29.8]} 12. Qd1 {[%clk 0:02:22.3]}
12... Nh5 {[%clk 0:02:26]} 13. Bg5 {[%clk 0:02:18.1]} 13... f6 {[%clk
0:02:22.9]} 14. Bc1 {[%clk 0:02:14.1]} 14... f5 {[%clk 0:02:15.4]} 15. Bg5
{[%clk 0:01:59]} 15... Nf6 {[%clk 0:02:14.4]} 16. Nd2 {[%clk 0:01:54.7]} 16...
h6 {[%clk 0:02:11.2]} 17. Bxf6 {[%clk 0:01:51.3]} 17... Qxf6 {[%clk 0:02:07.7]}
18. Qb3 {[%clk 0:01:43.7]} 18... Nd7 {[%clk 0:02:02.7]} 19. e4 {[%clk 0:01:41]}
19... f4 {[%clk 0:01:57.3]} 20. Nf3 {[%clk 0:01:36.9]} 20... Ne5 {[%clk
0:01:53.6]} 21. Nxe5 {[%clk 0:01:32.9]} 21... Qxe5 {[%clk 0:01:53.8]} 22. Na4
{[%clk 0:01:25.3]} 22... b5 {[%clk 0:01:50.2]} 23. Nb6 {[%clk 0:01:23.8]} 23...
Rb8 {[%clk 0:01:50.7]} 24. Nxc8 {[%clk 0:01:22.5]} 24... Rfxc8 {[%clk
0:01:47.4]} 25. Rab1 {[%clk 0:01:14.4]} 25... a5 {[%clk 0:01:37.9]} 26. Qf3
{[%clk 0:01:10.5]} 26... Rf8 {[%clk 0:01:33]} 27. Qg4 {[%clk 0:01:00.3]} 27...
Kh7 {[%clk 0:01:26.5]} 28. Qd7 {[%clk 0:00:51.7]} 28... Rfd8 {[%clk 0:01:18.5]}
29. Qc7 {[%clk 0:00:49.4]} 29... Rdc8 {[%clk 0:01:17.3]} 30. Qxa5 {[%clk
0:00:49.2]} 30... b4 {[%clk 0:01:15.1]} 31. a3 {[%clk 0:00:38.2]} 31... b3
{[%clk 0:01:08.9]} 32. Qd2 {[%clk 0:00:34.1]} 32... Rf8 {[%clk 0:01:05]} 33. Qd3
{[%clk 0:00:20.8]} 33... Rfc8 {[%clk 0:01:00.3]} 34. gxf4 {[%clk 0:00:19.1]}
34... Qxf4 {[%clk 0:00:59.8]} 35. Qg3 {[%clk 0:00:17.1]} 35... Qf6 {[%clk
0:00:56]} 36. Bh3 {[%clk 0:00:14.8]} 36... Re8 {[%clk 0:00:53.4]} 37. Be6 {[%clk
0:00:14.6]} 37... Qe5 {[%clk 0:00:52.6]} 38. Qxe5 {[%clk 0:00:14.3]} 38... Bxe5
{[%clk 0:00:52.8]} 39. f4 {[%clk 0:00:13.7]} 39... Bd4+ {[%clk 0:00:53.1]} 40.
Kg2 {[%clk 0:00:14]} 40... Rf8 {[%clk 0:00:52.3]} 41. Kg3 {[%clk 0:00:13.4]}
41... Rb5 {[%clk 0:00:42.8]} 42. Rf3 {[%clk 0:00:12.9]} 42... Rb6 {[%clk
0:00:42.3]} 43. h4 {[%clk 0:00:13]} 43... Kg7 {[%clk 0:00:41.5]} 44. h5 {[%clk
0:00:11.9]} 44... g5 {[%clk 0:00:36.7]} 45. fxg5 {[%clk 0:00:12.2]} 45... Rxf3+
{[%clk 0:00:36.8]} 46. Kxf3 {[%clk 0:00:12.4]} 46... hxg5 {[%clk 0:00:37.6]} 47.
Kg4 {[%clk 0:00:12.7]} 47... Kh6 {[%clk 0:00:36.8]} 48. Kf5 {[%clk 0:00:09.6]}
48... c4 {[%clk 0:00:36.7]} 49. Bf7 {[%clk 0:00:08.9]} 49... c3 {[%clk
0:00:33.4]} 50. bxc3 {[%clk 0:00:09.8]} 50... Bxc3 {[%clk 0:00:33.5]} 51. Ke6
{[%clk 0:00:09.1]} 51... b2 {[%clk 0:00:32.6]} 52. Bg6 {[%clk 0:00:08.2]} 52...
Bd2 {[%clk 0:00:32.3]} 53. e5 {[%clk 0:00:07.4]} 53... dxe5+ {[%clk 0:00:32]}
54. Kxe5 {[%clk 0:00:08.3]} 54... Bf4+ {[%clk 0:00:31.5]} 55. Kd4 {[%clk
0:00:07.6]} 55... Rb3 {[%clk 0:00:29.3]} 56. Kc4 {[%clk 0:00:07]} 56... Rh3
{[%clk 0:00:27.7]} 57. Rxb2 {[%clk 0:00:06]} 57... Re3 {[%clk 0:00:26]} 58. Ra2
{[%clk 0:00:04.7]} 58... Re1 {[%clk 0:00:25.3]} 59. a4 {[%clk 0:00:04.5]} 59...
Rc1+ {[%clk 0:00:25.3]} 60. Kb5 {[%clk 0:00:03.9]} 60... Rd1 {[%clk 0:00:24.7]}
61. Kc6 {[%clk 0:00:03.5]} 61... Rc1+ {[%clk 0:00:24.3]} 62. Kd7 {[%clk
0:00:03.8]} 62... Rc7+ {[%clk 0:00:23.5]} 63. Ke6 {[%clk 0:00:03.6]} 63... g4
{[%clk 0:00:21]} 64. d6 {[%clk 0:00:03.9]} 64... Rc6 {[%clk 0:00:20.9]} 65. a5
{[%clk 0:00:02.3]} 65... Rxd6+ {[%clk 0:00:21.1]} 66. Kf5 {[%clk 0:00:02.9]}
66... g3 {[%clk 0:00:20.3]} 67. Kxf4 {[%clk 0:00:03]} 67... Ra6 {[%clk
0:00:17.6]} 68. Kxg3 {[%clk 0:00:02.7]} 68... Kg5 {[%clk 0:00:18.1]} 69. Kf3
{[%clk 0:00:02.9]} 69... Kf6 {[%clk 0:00:18.2]} 70. Ke4 {[%clk 0:00:03.3]} 70...
Kg7 {[%clk 0:00:18.2]} 71. Kd4 {[%clk 0:00:04.2]} 71... Kf6 {[%clk 0:00:18.5]}
72. Kc5 {[%clk 0:00:04.6]} 72... Ke7 {[%clk 0:00:18.7]} 73. Kb5 {[%clk
0:00:04.9]} 73... Rf6 {[%clk 0:00:18.5]} 74. Re2+ {[%clk 0:00:04.5]} 74... Kd6
{[%clk 0:00:18]} 75. Rc2 {[%clk 0:00:04.3]} 75... Kd7 {[%clk 0:00:18]} 76. a6
{[%clk 0:00:03.7]} 76... Kd8 {[%clk 0:00:17.5]} 77. a7 {[%clk 0:00:03.7]} 77...
Rf1 {[%clk 0:00:16.9]} 78. Ra2 {[%clk 0:00:02.7]} 78... Rf6 {[%clk 0:00:14.4]}
79. a8=Q+ {[%clk 0:00:02]} 79... Kc7 {[%clk 0:00:14.8]} 80. Rc2+ {[%clk
0:00:02.2]} 80... Kd6 {[%clk 0:00:14.9]} 81. Qa6+ {[%clk 0:00:02.7]} 81... Ke5
{[%clk 0:00:15.5]} 82. Rc5+ {[%clk 0:00:02.6]} 82... Kd4 {[%clk 0:00:15.4]} 83.
Qxf6+ {[%clk 0:00:03.5]} 83... Ke3 {[%clk 0:00:15.5]} 84. Qe5+ {[%clk
0:00:02.8]} 84... Kf2 {[%clk 0:00:15.6]} 85. Rc3 {[%clk 0:00:03.2]} 85... Kg2
{[%clk 0:00:16.3]} 86. Qd5+ {[%clk 0:00:03.2]} 86... Kf1 {[%clk 0:00:15.8]} 87.
Qd2 {[%clk 0:00:03.8]} 87... Kg1 {[%clk 0:00:15.8]} 88. Rc1# {[%clk 0:00:04.7]}
1-0

[Event "Late-Titled-Tuesday-Blitz-April-02-2024"]
[Site "Chess.com"]
[Date "2024.04.02"]
[Round "8"]
[White "Kacparov"]
[Black "Msb2"]
[Result "1-0"]
[WhiteElo "2947"]
[BlackElo "3034"]
[TimeControl "180+1"]
[EndTime "15:28:25 PDT"]
[Termination "Kacparov won by checkmate"]

1. e4 {[%clk 0:03:00.9]} 1... e6 {[%clk 0:03:00.3]} 2. d4 {[%clk 0:03:00.7]}
2... d5 {[%clk 0:03:00.9]} 3. Nd2 {[%clk 0:03:00.6]} 3... c5 {[%clk 0:03:00.9]}
4. exd5 {[%clk 0:03:00.4]} 4... Qxd5 {[%clk 0:03:01.8]} 5. dxc5 {[%clk
0:03:00.3]} 5... Nf6 {[%clk 0:03:01]} 6. Ngf3 {[%clk 0:03:00.6]} 6... Qxc5
{[%clk 0:03:01.6]} 7. Bd3 {[%clk 0:02:59.5]} 7... Nbd7 {[%clk 0:03:00.6]} 8. O-O
{[%clk 0:02:59.5]} 8... Qc7 {[%clk 0:03:01.1]} 9. Qe2 {[%clk 0:02:58.5]} 9...
Nc5 {[%clk 0:02:59.4]} 10. Bc4 {[%clk 0:02:58.3]} 10... Bd6 {[%clk 0:02:58.5]}
11. b3 {[%clk 0:02:57]} 11... O-O {[%clk 0:02:50.7]} 12. Bb2 {[%clk 0:02:56.9]}
12... b6 {[%clk 0:02:36.3]} 13. Ne5 {[%clk 0:02:51.7]} 13... Bb7 {[%clk
0:02:31.5]} 14. Rae1 {[%clk 0:02:50.5]} 14... Nce4 {[%clk 0:02:24.4]} 15. Nxe4
{[%clk 0:02:49.1]} 15... Nxe4 {[%clk 0:02:25.3]} 16. Nf3 {[%clk 0:02:30.2]}
16... Bb4 {[%clk 0:02:25.2]} 17. Be5 {[%clk 0:02:00.2]} 17... Qe7 {[%clk
0:02:16.6]} 18. Rd1 {[%clk 0:01:56.7]} 18... Nc3 {[%clk 0:02:12.2]} 19. Bxc3
{[%clk 0:01:52.2]} 19... Bxc3 {[%clk 0:02:13.1]} 20. Ba6 {[%clk 0:01:36.2]}
20... Rac8 {[%clk 0:01:55.2]} 21. Bxb7 {[%clk 0:01:35.3]} 21... Qxb7 {[%clk
0:01:56.1]} 22. Rd3 {[%clk 0:01:33.6]} 22... b5 {[%clk 0:01:50.3]} 23. Ng5
{[%clk 0:01:10.5]} 23... Bf6 {[%clk 0:01:27.5]} 24. Ne4 {[%clk 0:01:09.1]} 24...
Be7 {[%clk 0:01:28.2]} 25. Rfd1 {[%clk 0:01:06.7]} 25... Rc7 {[%clk 0:01:22.7]}
26. Nd6 {[%clk 0:00:48.3]} 26... Qc6 {[%clk 0:01:17.4]} 27. c4 {[%clk
0:00:47.5]} 27... a6 {[%clk 0:01:09.9]} 28. R3d2 {[%clk 0:00:42.3]} 28... bxc4
{[%clk 0:00:52.2]} 29. Nxc4 {[%clk 0:00:42.1]} 29... Qc5 {[%clk 0:00:45.6]} 30.
g3 {[%clk 0:00:40.9]} 30... g6 {[%clk 0:00:45.3]} 31. Rd7 {[%clk 0:00:39.1]}
31... Bf6 {[%clk 0:00:40.8]} 32. Qf3 {[%clk 0:00:36.4]} 32... Kg7 {[%clk
0:00:40.8]} 33. h4 {[%clk 0:00:35.5]} 33... h5 {[%clk 0:00:40.9]} 34. Kg2 {[%clk
0:00:35.5]} 34... Rfc8 {[%clk 0:00:35.1]} 35. R1d6 {[%clk 0:00:34.2]} 35... Rxd7
{[%clk 0:00:31.8]} 36. Rxd7 {[%clk 0:00:34.4]} 36... Rc7 {[%clk 0:00:32.5]} 37.
Rxc7 {[%clk 0:00:28.1]} 37... Qxc7 {[%clk 0:00:33.4]} 38. Qe4 {[%clk 0:00:27.3]}
38... Qd7 {[%clk 0:00:30.3]} 39. Ne3 {[%clk 0:00:25.6]} 39... Qd2 {[%clk
0:00:29.1]} 40. Qc2 {[%clk 0:00:25.8]} 40... Qd7 {[%clk 0:00:24.7]} 41. Qc4
{[%clk 0:00:25.1]} 41... Bd4 {[%clk 0:00:21.6]} 42. Nc2 {[%clk 0:00:22.6]} 42...
Qb7+ {[%clk 0:00:21.5]} 43. Kg1 {[%clk 0:00:19.8]} 43... Bf6 {[%clk 0:00:20.1]}
44. Nb4 {[%clk 0:00:18]} 44... a5 {[%clk 0:00:20.1]} 45. Nc6 {[%clk 0:00:18.2]}
45... Qb6 {[%clk 0:00:19.4]} 46. Kg2 {[%clk 0:00:17.7]} 46... Kg8 {[%clk
0:00:15.8]} 47. a3 {[%clk 0:00:17]} 47... Bb2 {[%clk 0:00:12.3]} 48. b4 {[%clk
0:00:14]} 48... axb4 {[%clk 0:00:11.9]} 49. axb4 {[%clk 0:00:14.1]} 49... Ba3
{[%clk 0:00:10.4]} 50. b5 {[%clk 0:00:14.5]} 50... Bc5 {[%clk 0:00:10]} 51. Qe2
{[%clk 0:00:12.4]} 51... Qb7 {[%clk 0:00:06.9]} 52. Kg1 {[%clk 0:00:11.7]} 52...
Qb6 {[%clk 0:00:07.3]} 53. Ne5 {[%clk 0:00:11.6]} 53... Qb7 {[%clk 0:00:06.1]}
54. Nf3 {[%clk 0:00:11.3]} 54... Qb6 {[%clk 0:00:04.8]} 55. Ng5 {[%clk
0:00:11.6]} 55... Be7 {[%clk 0:00:04.1]} 56. Ne4 {[%clk 0:00:11.8]} 56... Qb7
{[%clk 0:00:04]} 57. Nd2 {[%clk 0:00:09.4]} 57... Bc5 {[%clk 0:00:03.7]} 58. Nf3
{[%clk 0:00:09.8]} 58... Qb6 {[%clk 0:00:03.3]} 59. Kg2 {[%clk 0:00:10.1]} 59...
Qb7 {[%clk 0:00:03.2]} 60. Qc4 {[%clk 0:00:10.3]} 60... Be7 {[%clk 0:00:02.8]}
61. Qd3 {[%clk 0:00:10.3]} 61... Bf6 {[%clk 0:00:02.8]} 62. Kg1 {[%clk
0:00:10.8]} 62... Kf8 {[%clk 0:00:03.3]} 63. Ne1 {[%clk 0:00:11.3]} 63... Kg7
{[%clk 0:00:03.8]} 64. Ng2 {[%clk 0:00:11.9]} 64... Be5 {[%clk 0:00:04]} 65. Ne3
{[%clk 0:00:12.3]} 65... Qb6 {[%clk 0:00:04.1]} 66. Qe2 {[%clk 0:00:11.2]} 66...
Bf6 {[%clk 0:00:04.3]} 67. Ng2 {[%clk 0:00:10.5]} 67... Qc5 {[%clk 0:00:04.5]}
68. Ne1 {[%clk 0:00:10.8]} 68... Qc1 {[%clk 0:00:04]} 69. Kg2 {[%clk 0:00:10.9]}
69... Qc7 {[%clk 0:00:04]} 70. Nf3 {[%clk 0:00:11.5]} 70... Qb7 {[%clk
0:00:04.7]} 71. Qc4 {[%clk 0:00:11.7]} 71... Qb6 {[%clk 0:00:04.7]} 72. Qc6
{[%clk 0:00:12.1]} 72... Bd8 {[%clk 0:00:04.9]} 73. Ne5 {[%clk 0:00:11.7]} 73...
Qd4 {[%clk 0:00:02.7]} 74. Nf3 {[%clk 0:00:11.7]} 74... Qa7 {[%clk 0:00:02.8]}
75. Qe4 {[%clk 0:00:11.4]} 75... Bb6 {[%clk 0:00:03.2]} 76. Qe5+ {[%clk
0:00:11.4]} 76... Kg8 {[%clk 0:00:03.2]} 77. Qe2 {[%clk 0:00:11.7]} 77... Qb7
{[%clk 0:00:03.6]} 78. Kg1 {[%clk 0:00:11.8]} 78... Qa7 {[%clk 0:00:03.7]} 79.
Kg2 {[%clk 0:00:12.1]} 79... Qb7 {[%clk 0:00:04.1]} 80. Kg1 {[%clk 0:00:12.7]}
80... Qa7 {[%clk 0:00:04.8]} 81. Ng5 {[%clk 0:00:13.4]} 81... Qb7 {[%clk
0:00:04.4]} 82. Ne4 {[%clk 0:00:13.8]} 82... Qa7 {[%clk 0:00:04.6]} 83. Kh2
{[%clk 0:00:13.5]} 83... Qb7 {[%clk 0:00:04.6]} 84. Qf3 {[%clk 0:00:12.8]} 84...
Bd4 {[%clk 0:00:04.4]} 85. Nf6+ {[%clk 0:00:12.6]} 85... Bxf6 {[%clk 0:00:05.3]}
86. Qxb7 {[%clk 0:00:12.9]} 86... Kg7 {[%clk 0:00:06.2]} 87. Qc6 {[%clk
0:00:12.9]} 87... Bxh4 {[%clk 0:00:07.1]} 88. gxh4 {[%clk 0:00:13]} 88... Kf6
{[%clk 0:00:07.5]} 89. b6 {[%clk 0:00:13.6]} 89... Kf5 {[%clk 0:00:08.4]} 90. b7
{[%clk 0:00:13.9]} 90... Kg4 {[%clk 0:00:09.3]} 91. b8=Q {[%clk 0:00:13.6]}
91... f5 {[%clk 0:00:10.1]} 92. Qg3# {[%clk 0:00:13.6]} 1-0

[Event "Late-Titled-Tuesday-Blitz-April-02-2024"]
[Site "Chess.com"]
[Date "2024.04.02"]
[Round "8"]
[White "DeArron_Fox"]
[Black "cedchass2006"]
[Result "1/2-1/2"]
[WhiteElo "2533"]
[BlackElo "2428"]
[TimeControl "180+1"]
[EndTime "15:29:01 PDT"]
[Termination "Game drawn - insufficient material"]

1. d4 {[%clk 0:03:00.9]} 1... Nf6 {[%clk 0:02:57.6]} 2. c4 {[%clk 0:03:01.2]}
2... e6 {[%clk 0:02:58]} 3. Nf3 {[%clk 0:03:01.2]} 3... d5 {[%clk 0:02:57.8]} 4.
Nc3 {[%clk 0:02:59.6]} 4... dxc4 {[%clk 0:02:54.1]} 5. e3 {[%clk 0:02:59.1]}
5... a6 {[%clk 0:02:51.7]} 6. Bxc4 {[%clk 0:02:54.6]} 6... b5 {[%clk 0:02:49.6]}
7. Bb3 {[%clk 0:02:55]} 7... Bb7 {[%clk 0:02:44.9]} 8. O-O {[%clk 0:02:54.8]}
8... c5 {[%clk 0:02:44]} 9. e4 {[%clk 0:02:54.7]} 9... cxd4 {[%clk 0:02:36.4]}
10. Nxd4 {[%clk 0:02:54]} 10... Nc6 {[%clk 0:02:36.5]} 11. Nxc6 {[%clk
0:02:06.3]} 11... Bxc6 {[%clk 0:02:36.3]} 12. Qe2 {[%clk 0:01:44.3]} 12... Be7
{[%clk 0:02:35.4]} 13. Rd1 {[%clk 0:01:37.3]} 13... Qc7 {[%clk 0:02:28.7]} 14.
Nd5 {[%clk 0:00:52.8]} 14... exd5 {[%clk 0:02:23.9]} 15. exd5 {[%clk 0:00:53.7]}
15... Bxd5 {[%clk 0:02:17.5]} 16. Bxd5 {[%clk 0:00:53.8]} 16... Nxd5 {[%clk
0:02:17.6]} 17. Rxd5 {[%clk 0:00:54.7]} 17... O-O {[%clk 0:02:17.8]} 18. Be3
{[%clk 0:00:53.3]} 18... Bf6 {[%clk 0:02:17.4]} 19. Rc1 {[%clk 0:00:52.8]} 19...
Qa5 {[%clk 0:02:15.7]} 20. b3 {[%clk 0:00:41.2]} 20... Rac8 {[%clk 0:02:15.5]}
21. Rxc8 {[%clk 0:00:33.9]} 21... Rxc8 {[%clk 0:02:16.4]} 22. g3 {[%clk
0:00:26.5]} 22... Qc3 {[%clk 0:02:06.5]} 23. Rd6 {[%clk 0:00:16.6]} 23... a5
{[%clk 0:01:52]} 24. Qxb5 {[%clk 0:00:11.5]} 24... Qa1+ {[%clk 0:01:52.1]} 25.
Kg2 {[%clk 0:00:11.2]} 25... Qxa2 {[%clk 0:01:51.6]} 26. Ra6 {[%clk 0:00:06.8]}
26... Qc2 {[%clk 0:01:46.1]} 27. Qd5 {[%clk 0:00:04.3]} 27... Qc3 {[%clk
0:01:37.3]} 28. Rxa5 {[%clk 0:00:02.9]} 28... g6 {[%clk 0:01:34.3]} 29. Ra7
{[%clk 0:00:02.4]} 29... Qc6 {[%clk 0:01:28.1]} 30. Qxc6 {[%clk 0:00:01.5]}
30... Rxc6 {[%clk 0:01:29]} 31. b4 {[%clk 0:00:01.6]} 31... Rc4 {[%clk
0:01:26.4]} 32. b5 {[%clk 0:00:02]} 32... Bd4 {[%clk 0:01:24.1]} 33. Bxd4 {[%clk
0:00:01.6]} 33... Rxd4 {[%clk 0:01:25]} 34. b6 {[%clk 0:00:01.7]} 34... Rb4
{[%clk 0:01:25.6]} 35. b7 {[%clk 0:00:02.1]} 35... Kg7 {[%clk 0:01:26.1]} 36.
Kf3 {[%clk 0:00:02.7]} 36... h5 {[%clk 0:01:25.5]} 37. Ke3 {[%clk 0:00:03]}
37... Rb1 {[%clk 0:01:25.7]} 38. Kd4 {[%clk 0:00:03]} 38... Kf6 {[%clk 0:01:22]}
39. Kc5 {[%clk 0:00:02.1]} 39... Kf5 {[%clk 0:01:20.2]} 40. Kc6 {[%clk
0:00:02.1]} 40... Rc1+ {[%clk 0:01:20.1]} 41. Kd7 {[%clk 0:00:02]} 41... Rb1
{[%clk 0:01:13.9]} 42. Kc7 {[%clk 0:00:02.4]} 42... Rc1+ {[%clk 0:01:13.4]} 43.
Kd7 {[%clk 0:00:02.7]} 43... Rb1 {[%clk 0:01:13.5]} 44. Ra5+ {[%clk 0:00:03.2]}
44... Kg4 {[%clk 0:01:09.8]} 45. Kc6 {[%clk 0:00:03.7]} 45... Rxb7 {[%clk
0:01:08.3]} 46. Kxb7 {[%clk 0:00:04.6]} 46... Kf3 {[%clk 0:01:07.8]} 47. Kc6
{[%clk 0:00:03]} 47... Kxf2 {[%clk 0:01:08]} 48. Ra7 {[%clk 0:00:02.6]} 48... f6
{[%clk 0:01:06.8]} 49. Rg7 {[%clk 0:00:02.9]} 49... g5 {[%clk 0:01:06.9]} 50.
Rg6 {[%clk 0:00:02.9]} 50... Kg2 {[%clk 0:01:07.4]} 51. Rxf6 {[%clk 0:00:03.1]}
51... Kxh2 {[%clk 0:01:07.9]} 52. Rf5 {[%clk 0:00:02.8]} 52... g4 {[%clk
0:01:05.3]} 53. Rxh5+ {[%clk 0:00:03]} 53... Kxg3 {[%clk 0:01:05.7]} 54. Kd5
{[%clk 0:00:03.5]} 54... Kf2 {[%clk 0:01:04.9]} 55. Ke4 {[%clk 0:00:02.5]} 55...
g3 {[%clk 0:01:05.5]} 56. Rf5+ {[%clk 0:00:03]} 56... Kg1 {[%clk 0:01:02.2]} 57.
Kf3 {[%clk 0:00:02.6]} 57... g2 {[%clk 0:01:02.1]} 58. Rg5 {[%clk 0:00:03]}
58... Kh1 {[%clk 0:01:02.4]} 59. Rh5+ {[%clk 0:00:03.1]} 59... Kg1 {[%clk
0:01:02.8]} 60. Rd5 {[%clk 0:00:02.2]} 60... Kh1 {[%clk 0:01:02.8]} 61. Rh5+
{[%clk 0:00:02.2]} 61... Kg1 {[%clk 0:01:02.9]} 62. Rh4 {[%clk 0:00:01.8]} 62...
Kf1 {[%clk 0:01:02.4]} 63. Ra4 {[%clk 0:00:02.5]} 63... g1=N+ {[%clk 0:01:00.9]}
64. Ke3 {[%clk 0:00:03.1]} 64... Kg2 {[%clk 0:01:01.3]} 65. Rg4+ {[%clk
0:00:02.9]} 65... Kf1 {[%clk 0:00:58.7]} 66. Rg3 {[%clk 0:00:02.3]} 66... Ne2
{[%clk 0:00:58.2]} 67. Rh3 {[%clk 0:00:02.3]} 67... Kg2 {[%clk 0:00:56.5]} 68.
Rh5 {[%clk 0:00:01.6]} 68... Ng3 {[%clk 0:00:55.1]} 69. Rg5 {[%clk 0:00:02]}
69... Kh3 {[%clk 0:00:52.6]} 70. Rg8 {[%clk 0:00:02.9]} 70... Kh4 {[%clk
0:00:51.8]} 71. Kf4 {[%clk 0:00:02.1]} 71... Nh5+ {[%clk 0:00:52.1]} 72. Kf3
{[%clk 0:00:02.6]} 72... Nf6 {[%clk 0:00:51]} 73. Rg6 {[%clk 0:00:02.3]} 73...
Nh5 {[%clk 0:00:46.9]} 74. Rg4+ {[%clk 0:00:02.4]} 74... Kh3 {[%clk 0:00:47]}
75. Ra4 {[%clk 0:00:02.5]} 75... Ng7 {[%clk 0:00:44.3]} 76. Ra5 {[%clk
0:00:02.2]} 76... Kh4 {[%clk 0:00:43.6]} 77. Kf4 {[%clk 0:00:01.7]} 77... Ne6+
{[%clk 0:00:43.2]} 78. Kf5 {[%clk 0:00:02]} 78... Nd4+ {[%clk 0:00:43.3]} 79.
Ke4 {[%clk 0:00:01.4]} 79... Ne2 {[%clk 0:00:42.5]} 80. Kf3 {[%clk 0:00:01.6]}
80... Nd4+ {[%clk 0:00:42.4]} 81. Kf4 {[%clk 0:00:02.2]} 81... Ne2+ {[%clk
0:00:41.2]} 82. Ke3 {[%clk 0:00:01.9]} 82... Ng3 {[%clk 0:00:40.6]} 83. Kf3
{[%clk 0:00:02.3]} 83... Nh5 {[%clk 0:00:39.5]} 84. Rf5 {[%clk 0:00:02.8]} 84...
Ng7 {[%clk 0:00:37.8]} 85. Rf7 {[%clk 0:00:03.1]} 85... Ne6 {[%clk 0:00:35.8]}
86. Rf6 {[%clk 0:00:03.5]} 86... Ng5+ {[%clk 0:00:34.5]} 87. Kf4 {[%clk
0:00:03]} 87... Nh3+ {[%clk 0:00:34.9]} 88. Kf5 {[%clk 0:00:03.4]} 88... Kg3
{[%clk 0:00:34.8]} 89. Ra6 {[%clk 0:00:01.7]} 89... Nf2 {[%clk 0:00:33.4]} 90.
Ra3+ {[%clk 0:00:02.6]} 90... Kg2 {[%clk 0:00:33.4]} 91. Kf4 {[%clk 0:00:02.7]}
91... Nh3+ {[%clk 0:00:33.3]} 92. Ke3 {[%clk 0:00:02.1]} 92... Ng5 {[%clk
0:00:32.3]} 93. Ra4 {[%clk 0:00:01.7]} 93... Kg3 {[%clk 0:00:31.5]} 94. Ra5
{[%clk 0:00:01.8]} 94... Kg4 {[%clk 0:00:31.6]} 95. Ra8 {[%clk 0:00:02.1]} 95...
Kf5 {[%clk 0:00:31.4]} 96. Ra5+ {[%clk 0:00:01.9]} 96... Kf6 {[%clk 0:00:31.5]}
97. Kf4 {[%clk 0:00:01.7]} 97... Ne6+ {[%clk 0:00:32.2]} 98. Ke4 {[%clk
0:00:02.4]} 98... Ng5+ {[%clk 0:00:32.8]} 99. Kf4 {[%clk 0:00:02.7]} 99... Ne6+
{[%clk 0:00:33]} 100. Kg4 {[%clk 0:00:03.6]} 100... Ke7 {[%clk 0:00:31.4]} 101.
Kf5 {[%clk 0:00:03.4]} 101... Nd4+ {[%clk 0:00:31.8]} 102. Ke4 {[%clk 0:00:03]}
102... Nc6 {[%clk 0:00:31.9]} 103. Rb5 {[%clk 0:00:02]} 103... Kd6 {[%clk
0:00:32.1]} 104. Rh5 {[%clk 0:00:02.6]} 104... Kc7 {[%clk 0:00:31.3]} 105. Kd5
{[%clk 0:00:03.2]} 105... Ne7+ {[%clk 0:00:30.8]} 106. Kc5 {[%clk 0:00:03.7]}
106... Kd7 {[%clk 0:00:31.1]} 107. Rh6 {[%clk 0:00:04.2]} 107... Ke8 {[%clk
0:00:29.8]} 108. Ra6 {[%clk 0:00:02.4]} 108... Kd7 {[%clk 0:00:29.2]} 109. Rb6
{[%clk 0:00:02]} 109... Ke8 {[%clk 0:00:27.6]} 110. Kd6 {[%clk 0:00:02.3]}
110... Nc8+ {[%clk 0:00:27.8]} 111. Kc7 {[%clk 0:00:01.8]} 111... Nxb6 {[%clk
0:00:28.4]} 1/2-1/2

[Event "Late-Titled-Tuesday-Blitz-April-02-2024"]
[Site "Chess.com"]
[Date "2024.04.02"]
[Round "9"]
[White "Akhayan"]
[Black "Navyblue1"]
[Result "1-0"]
[WhiteElo "2449"]
[BlackElo "2282"]
[TimeControl "180+1"]
[EndTime "15:37:26 PDT"]
[Termination "Akhayan won by checkmate"]

1. e4 {[%clk 0:03:00.9]} 1... c5 {[%clk 0:02:59.3]} 2. Nf3 {[%clk 0:03:00.4]}
2... d6 {[%clk 0:02:57.4]} 3. d4 {[%clk 0:03:00.6]} 3... cxd4 {[%clk 0:02:58.2]}
4. Nxd4 {[%clk 0:03:01.1]} 4... Nf6 {[%clk 0:02:58]} 5. Nc3 {[%clk 0:03:01.7]}
5... a6 {[%clk 0:02:57.7]} 6. Bc4 {[%clk 0:03:02.3]} 6... b5 {[%clk 0:02:56]} 7.
Bb3 {[%clk 0:03:02.5]} 7... e6 {[%clk 0:02:53.7]} 8. O-O {[%clk 0:03:02.8]} 8...
Be7 {[%clk 0:02:52.4]} 9. f4 {[%clk 0:03:02]} 9... O-O {[%clk 0:02:52.3]} 10. e5
{[%clk 0:03:01.7]} 10... dxe5 {[%clk 0:02:51]} 11. fxe5 {[%clk 0:03:02.3]} 11...
Nd5 {[%clk 0:02:49]} 12. Qh5 {[%clk 0:02:43.7]} 12... Nxc3 {[%clk 0:02:31.7]}
13. bxc3 {[%clk 0:02:43]} 13... Bb7 {[%clk 0:02:30.9]} 14. Rxf7 {[%clk
0:02:19.9]} 14... g6 {[%clk 0:02:20.1]} 15. Qxh7# {[%clk 0:02:17.2]} 1-0

[Event "Late-Titled-Tuesday-Blitz-April-02-2024"]
[Site "Chess.com"]
[Date "2024.04.02"]
[Round "9"]
[White "The_Straightforward_Rook"]
[Black "Dhaydon19"]
[Result "0-1"]
[WhiteElo "2364"]
[BlackElo "2636"]
[TimeControl "180+1"]
[EndTime "15:38:19 PDT"]
[Termination "Dhaydon19 won by resignation"]

1. e4 {[%clk 0:02:53.3]} 1... b6 {[%clk 0:02:56.3]} 2. Nf3 {[%clk 0:02:47.6]}
2... Bb7 {[%clk 0:02:57.2]} 3. d3 {[%clk 0:02:47.9]} 3... e6 {[%clk 0:02:56.9]}
4. g3 {[%clk 0:02:47.9]} 4... Ne7 {[%clk 0:02:56.8]} 5. Bg2 {[%clk 0:02:48.3]}
5... c5 {[%clk 0:02:56.7]} 6. O-O {[%clk 0:02:48.2]} 6... d6 {[%clk 0:02:57]} 7.
Nbd2 {[%clk 0:02:48.4]} 7... g6 {[%clk 0:02:57]} 8. Re1 {[%clk 0:02:48.9]} 8...
Bg7 {[%clk 0:02:57.3]} 9. c3 {[%clk 0:02:48.2]} 9... Nd7 {[%clk 0:02:57.6]} 10.
Nf1 {[%clk 0:02:48.7]} 10... Ne5 {[%clk 0:02:56.8]} 11. a4 {[%clk 0:02:35.4]}
11... a6 {[%clk 0:02:55.2]} 12. h4 {[%clk 0:02:31.5]} 12... h6 {[%clk
0:02:53.8]} 13. N1h2 {[%clk 0:02:30.9]} 13... N7c6 {[%clk 0:02:51.2]} 14. d4
{[%clk 0:02:26.8]} 14... Nxf3+ {[%clk 0:02:50.6]} 15. Nxf3 {[%clk 0:02:26.7]}
15... O-O {[%clk 0:02:49.1]} 16. h5 {[%clk 0:02:25.5]} 16... g5 {[%clk
0:02:48.3]} 17. d5 {[%clk 0:02:21.7]} 17... exd5 {[%clk 0:02:45]} 18. exd5
{[%clk 0:02:22.6]} 18... Ne7 {[%clk 0:02:42.4]} 19. Nh2 {[%clk 0:02:20.5]} 19...
Qd7 {[%clk 0:02:38.4]} 20. f4 {[%clk 0:02:18.6]} 20... f6 {[%clk 0:02:34.7]} 21.
c4 {[%clk 0:02:09.2]} 21... Rae8 {[%clk 0:02:31.2]} 22. Ra3 {[%clk 0:02:08.8]}
22... Nf5 {[%clk 0:02:26.6]} 23. Bh3 {[%clk 0:02:07.7]} 23... Bc8 {[%clk
0:02:25.8]} 24. Rae3 {[%clk 0:02:03]} 24... Rxe3 {[%clk 0:02:23.3]} 25. Rxe3
{[%clk 0:02:02.9]} 25... Nxe3 {[%clk 0:02:21]} 0-1